[Event "Early-Titled-Tuesday-Blitz-September-26-2023"]
[Site "Chess.com"]
[Date "2023.09.26"]
[Round "1"]
[White "falzehope0"]
[Black "bazar-wokzal"]
[Result "0-1"]
[WhiteElo "2353"]
[BlackElo "2655"]
[TimeControl "180+1"]
[EndTime "8:08:35 PDT"]
[Termination "bazar-wokzal won by resignation"]

1. d4 {[%clk 0:02:55.7]} 1... Nf6 {[%clk 0:02:59.6]} 2. e3 {[%clk 0:02:55.7]}
2... Nc6 {[%clk 0:02:59.4]} 3. f4 {[%clk 0:02:55.4]} 3... d6 {[%clk 0:02:58.1]}
4. Bd3 {[%clk 0:02:52]} 4... e5 {[%clk 0:02:56.9]} 5. c3 {[%clk 0:02:51.1]} 5...
g6 {[%clk 0:02:48.8]} 6. Nd2 {[%clk 0:02:48.4]} 6... Bg7 {[%clk 0:02:46.7]} 7.
Ne2 {[%clk 0:02:46.7]} 7... O-O {[%clk 0:02:44]} 8. O-O {[%clk 0:02:42.3]} 8...
Qe7 {[%clk 0:02:37.6]} 9. Qc2 {[%clk 0:02:37.4]} 9... Re8 {[%clk 0:02:24.2]} 10.
Ng3 {[%clk 0:02:34.8]} 10... h5 {[%clk 0:02:06]} 11. h3 {[%clk 0:02:31]} 11...
exf4 {[%clk 0:01:44.3]} 12. exf4 {[%clk 0:02:31.9]} 12... Qe3+ {[%clk
0:01:43.6]} 13. Kh2 {[%clk 0:02:31]} 13... h4 {[%clk 0:01:30.4]} 14. Nde4 {[%clk
0:01:52]} 14... hxg3+ {[%clk 0:01:27.2]} 15. Kh1 {[%clk 0:01:50.3]} 15... Rxe4
{[%clk 0:01:18]} 16. Bxe3 {[%clk 0:01:48.2]} 16... Rxe3 {[%clk 0:01:18.5]} 17.
f5 {[%clk 0:01:42.8]} 17... g5 {[%clk 0:01:12.9]} 18. Qd2 {[%clk 0:01:38.5]}
18... Re7 {[%clk 0:00:50.4]} 19. Qxg5 {[%clk 0:01:37.2]} 19... Bd7 {[%clk
0:00:49.6]} 20. Qxg3 {[%clk 0:01:35.4]} 20... Rae8 {[%clk 0:00:48.5]} 21. Rae1
{[%clk 0:01:33.8]} 21... Nh5 {[%clk 0:00:45.7]} 22. Qf2 {[%clk 0:01:24.3]} 22...
Bf6 {[%clk 0:00:40]} 23. Rxe7 {[%clk 0:01:17]} 23... Rxe7 {[%clk 0:00:40]} 24.
Re1 {[%clk 0:01:14.6]} 24... Kf8 {[%clk 0:00:32.4]} 25. Rxe7 {[%clk 0:01:12.9]}
25... Nxe7 {[%clk 0:00:32.5]} 26. g4 {[%clk 0:01:07.9]} 26... Ng7 {[%clk
0:00:31.7]} 27. Be4 {[%clk 0:01:05.5]} 27... d5 {[%clk 0:00:25.2]} 28. Bg2
{[%clk 0:01:03.6]} 28... Ne8 {[%clk 0:00:24.7]} 29. Qf4 {[%clk 0:01:01.8]} 29...
Nd6 {[%clk 0:00:23]} 30. g5 {[%clk 0:01:00.6]} 30... Bh8 {[%clk 0:00:19.6]} 31.
Qh4 {[%clk 0:00:49.3]} 31... Kg8 {[%clk 0:00:18.4]} 32. f6 {[%clk 0:00:44.2]}
32... Ng6 {[%clk 0:00:18.7]} 33. Qe1 {[%clk 0:00:42.9]} 33... Ne4 {[%clk
0:00:19]} 34. Bxe4 {[%clk 0:00:41.6]} 34... dxe4 {[%clk 0:00:19.9]} 35. Qxe4
{[%clk 0:00:39.5]} 35... c6 {[%clk 0:00:18.9]} 36. h4 {[%clk 0:00:34.5]} 36...
Be6 {[%clk 0:00:19.1]} 37. Kg1 {[%clk 0:00:29.6]} 37... Nf8 {[%clk 0:00:19.2]}
38. h5 {[%clk 0:00:27.8]} 38... Bxa2 {[%clk 0:00:19.1]} 39. Qe7 {[%clk 0:00:18]}
39... b5 {[%clk 0:00:18.3]} 40. Qxa7 {[%clk 0:00:17.4]} 40... Bd5 {[%clk
0:00:18.3]} 41. Qe7 {[%clk 0:00:17.4]} 41... Nh7 {[%clk 0:00:18.2]} 42. g6
{[%clk 0:00:16.6]} 42... fxg6 {[%clk 0:00:17.6]} 43. Qe8+ {[%clk 0:00:14.8]}
43... Nf8 {[%clk 0:00:17.8]} 44. hxg6 {[%clk 0:00:14.4]} 44... Bxf6 {[%clk
0:00:18.5]} 45. Qc8 {[%clk 0:00:10.6]} 45... Kg7 {[%clk 0:00:19]} 46. Qg4 {[%clk
0:00:09.8]} 46... Nxg6 {[%clk 0:00:19.2]} 47. Qd7+ {[%clk 0:00:09.5]} 47... Ne7
{[%clk 0:00:19.1]} 48. Qb7 {[%clk 0:00:10.4]} 48... Kf7 {[%clk 0:00:19.4]} 49.
Kf2 {[%clk 0:00:10.8]} 49... Ke6 {[%clk 0:00:19.8]} 50. Ke3 {[%clk 0:00:11.3]}
50... Nf5+ {[%clk 0:00:20.3]} 51. Kf4 {[%clk 0:00:11.6]} 51... Nd6 {[%clk
0:00:21.2]} 52. Qa7 {[%clk 0:00:09]} 52... Nf7 {[%clk 0:00:21.3]} 53. Ke3 {[%clk
0:00:09.2]} 53... Bg5+ {[%clk 0:00:21.7]} 54. Kf2 {[%clk 0:00:08.9]} 54... Nd6
{[%clk 0:00:22.2]} 55. Ke1 {[%clk 0:00:08.4]} 55... Ne4 {[%clk 0:00:22.8]} 56.
Kd1 {[%clk 0:00:08.8]} 56... Be3 {[%clk 0:00:22.8]} 57. Kc2 {[%clk 0:00:09.2]}
57... Bc4 {[%clk 0:00:23.1]} 58. b3 {[%clk 0:00:08.6]} 58... Be2 {[%clk
0:00:22.8]} 59. Qb7 {[%clk 0:00:06.6]} 59... Kd6 {[%clk 0:00:22]} 60. Qb8+
{[%clk 0:00:06.4]} 60... Kd7 {[%clk 0:00:22.5]} 61. Qb7+ {[%clk 0:00:06.4]}
61... Kd6 {[%clk 0:00:22.9]} 62. Qb8+ {[%clk 0:00:06.6]} 62... Kd7 {[%clk
0:00:23.1]} 63. Qb7+ {[%clk 0:00:06.7]} 63... Kd8 {[%clk 0:00:23]} 64. Qc7+
{[%clk 0:00:06.4]} 64... Kxc7 {[%clk 0:00:23.3]} 65. Kb2 {[%clk 0:00:02.4]}
65... Bd2 {[%clk 0:00:22.7]} 66. Ka3 {[%clk 0:00:03.3]} 66... Bxc3 {[%clk
0:00:23.2]} 67. d5 {[%clk 0:00:03.4]} 67... cxd5 {[%clk 0:00:23.3]} 68. b4
{[%clk 0:00:03.8]} 68... Nd6 {[%clk 0:00:22.9]} 69. Kb3 {[%clk 0:00:04.3]} 69...
d4 {[%clk 0:00:23.6]} 70. Kc2 {[%clk 0:00:04.6]} 70... Nf5 {[%clk 0:00:24]} 71.
Kb3 {[%clk 0:00:05.1]} 71... Ne3 {[%clk 0:00:24.5]} 72. Ka2 {[%clk 0:00:04.2]}
72... Nd5 {[%clk 0:00:25.1]} 73. Kb3 {[%clk 0:00:03.9]} 73... Bxb4 {[%clk
0:00:25.2]} 74. Kc2 {[%clk 0:00:04.4]} 74... d3+ {[%clk 0:00:24.9]} 75. Kb2
{[%clk 0:00:04.6]} 75... d2 {[%clk 0:00:25.3]} 76. Kc2 {[%clk 0:00:05.2]} 76...
d1=Q+ {[%clk 0:00:25.4]} 77. Kb2 {[%clk 0:00:05.3]} 77... Qd2+ {[%clk
0:00:25.4]} 78. Ka1 {[%clk 0:00:05.4]} 78... Bc3+ {[%clk 0:00:25.5]} 0-1

[Event "Early-Titled-Tuesday-Blitz-September-26-2023"]
[Site "Chess.com"]
[Date "2023.09.26"]
[Round "1"]
[White "Juicy_Fork"]
[Black "Bauman_Guy"]
[Result "0-1"]
[WhiteElo "2502"]
[BlackElo "2893"]
[TimeControl "180+1"]
[EndTime "8:08:38 PDT"]
[Termination "Bauman_Guy won on time"]

1. e4 {[%clk 0:03:00.9]} 1... c5 {[%clk 0:03:00.3]} 2. Nf3 {[%clk 0:03:00.9]}
2... d6 {[%clk 0:03:00.4]} 3. d4 {[%clk 0:03:00.8]} 3... Nf6 {[%clk 0:03:00.7]}
4. Nc3 {[%clk 0:03:00.6]} 4... cxd4 {[%clk 0:03:01]} 5. Nxd4 {[%clk 0:03:01.5]}
5... a6 {[%clk 0:03:01]} 6. Bd3 {[%clk 0:03:01.7]} 6... e5 {[%clk 0:03:01.1]} 7.
Nde2 {[%clk 0:03:01.3]} 7... Be7 {[%clk 0:03:01]} 8. O-O {[%clk 0:03:00.9]} 8...
O-O {[%clk 0:03:01]} 9. h3 {[%clk 0:03:00.9]} 9... b5 {[%clk 0:02:59.4]} 10. Be3
{[%clk 0:02:58.1]} 10... Bb7 {[%clk 0:02:59.4]} 11. f4 {[%clk 0:02:57.2]} 11...
Nbd7 {[%clk 0:02:56.3]} 12. a3 {[%clk 0:02:41.2]} 12... Rc8 {[%clk 0:02:55.8]}
13. g4 {[%clk 0:02:36.2]} 13... exf4 {[%clk 0:02:48.4]} 14. Nxf4 {[%clk
0:02:35.2]} 14... Ne5 {[%clk 0:02:49.3]} 15. g5 {[%clk 0:02:30.2]} 15... Nfd7
{[%clk 0:02:42.4]} 16. h4 {[%clk 0:02:30.2]} 16... Nb6 {[%clk 0:02:32.9]} 17.
Ncd5 {[%clk 0:02:21.4]} 17... Nxd5 {[%clk 0:02:30.9]} 18. exd5 {[%clk
0:02:16.7]} 18... Re8 {[%clk 0:02:26.8]} 19. Bd4 {[%clk 0:01:44.3]} 19... g6
{[%clk 0:02:24.2]} 20. c3 {[%clk 0:01:33.3]} 20... Bf8 {[%clk 0:02:20]} 21. Bc2
{[%clk 0:01:25.7]} 21... Bg7 {[%clk 0:02:17.5]} 22. Kh2 {[%clk 0:01:03.4]} 22...
Qe7 {[%clk 0:02:02.2]} 23. Re1 {[%clk 0:00:59]} 23... Rc4 {[%clk 0:01:49.4]} 24.
Bd3 {[%clk 0:00:48.4]} 24... Rc7 {[%clk 0:01:45.5]} 25. Be4 {[%clk 0:00:40.6]}
25... Nc4 {[%clk 0:01:32.8]} 26. b3 {[%clk 0:00:17.2]} 26... Bxd4 {[%clk
0:01:21.7]} 27. Qxd4 {[%clk 0:00:15.2]} 27... Ne5 {[%clk 0:01:21.7]} 28. Bg2
{[%clk 0:00:13.2]} 28... Rec8 {[%clk 0:01:13.5]} 29. Rac1 {[%clk 0:00:09.8]}
29... h6 {[%clk 0:01:12.5]} 30. Nd3 {[%clk 0:00:08.4]} 30... Re8 {[%clk
0:01:05.1]} 31. Nxe5 {[%clk 0:00:07.7]} 31... dxe5 {[%clk 0:01:06]} 32. Qd2
{[%clk 0:00:07.7]} 32... Rd7 {[%clk 0:01:04]} 33. gxh6 {[%clk 0:00:06.5]} 33...
Qxh4+ {[%clk 0:01:03.6]} 34. Kg1 {[%clk 0:00:07.1]} 34... Kh7 {[%clk 0:01:00.6]}
35. c4 {[%clk 0:00:07.5]} 35... Qxh6 {[%clk 0:00:59]} 36. Qxh6+ {[%clk
0:00:06.6]} 36... Kxh6 {[%clk 0:00:59.9]} 37. c5 {[%clk 0:00:04.8]} 37... Bxd5
{[%clk 0:00:58.5]} 38. c6 {[%clk 0:00:05.3]} 38... Rd6 {[%clk 0:00:46.8]} 39.
Red1 {[%clk 0:00:04.8]} 39... Rxc6 {[%clk 0:00:47.2]} 40. Bxd5 {[%clk
0:00:03.9]} 40... Rxc1 {[%clk 0:00:45.2]} 41. Rxc1 {[%clk 0:00:04.8]} 41... f5
{[%clk 0:00:46.1]} 42. Bb7 {[%clk 0:00:05.1]} 42... a5 {[%clk 0:00:38]} 43. Kf2
{[%clk 0:00:05.2]} 43... b4 {[%clk 0:00:37.2]} 44. a4 {[%clk 0:00:02.7]} 44...
e4 {[%clk 0:00:33.8]} 45. Rc5 {[%clk 0:00:02.8]} 45... Rd8 {[%clk 0:00:34.2]}
46. Rxa5 {[%clk 0:00:02.2]} 46... Rd2+ {[%clk 0:00:34.7]} 47. Ke1 {[%clk
0:00:01.9]} 47... Rd3 {[%clk 0:00:35.6]} 48. Bd5 {[%clk 0:00:01.7]} 48... Kg5
{[%clk 0:00:34.3]} 49. Bc4 {[%clk 0:00:02.1]} 49... Rc3 {[%clk 0:00:33.9]} 50.
Rb5 {[%clk 0:00:02.3]} 50... Kf4 {[%clk 0:00:33.9]} 51. Rb6 {[%clk 0:00:02.3]}
51... Ke3 {[%clk 0:00:34]} 52. Kd1 {[%clk 0:00:02.6]} 52... g5 {[%clk
0:00:32.8]} 53. Rg6 {[%clk 0:00:02]} 53... g4 {[%clk 0:00:26.9]} 54. a5 {[%clk
0:00:02.2]} 54... Kf2 {[%clk 0:00:27.4]} 55. a6 {[%clk 0:00:01.9]} 55... e3
{[%clk 0:00:27.7]} 56. Re6 {[%clk 0:00:01.2]} 56... g3 {[%clk 0:00:25]} 57. a7
{[%clk 0:00:01.2]} 57... g2 {[%clk 0:00:25.3]} 58. Rg6 {[%clk 0:00:01.6]} 58...
Rxc4 {[%clk 0:00:23.8]} 59. bxc4 {[%clk 0:00:01.7]} 59... e2+ {[%clk 0:00:24.3]}
60. Kc2 {[%clk 0:00:02.4]} 60... e1=Q {[%clk 0:00:22]} 61. a8=Q {[%clk
0:00:02.4]} 61... Qc3+ {[%clk 0:00:22.4]} 62. Kb1 {[%clk 0:00:02.1]} 62... g1=Q+
{[%clk 0:00:22.2]} 63. Rxg1 {[%clk 0:00:03]} 63... Kxg1 {[%clk 0:00:23.1]} 64.
Qa7+ {[%clk 0:00:03.2]} 64... Kg2 {[%clk 0:00:20.6]} 65. Qb7+ {[%clk 0:00:02.1]}
65... Kg3 {[%clk 0:00:19.4]} 66. Qc7+ {[%clk 0:00:02]} 66... f4 {[%clk
0:00:19.8]} 0-1

[Event "Early-Titled-Tuesday-Blitz-September-26-2023"]
[Site "Chess.com"]
[Date "2023.09.26"]
[Round "1"]
[White "SHIVACalypso"]
[Black "MikaelyanArman"]
[Result "0-1"]
[WhiteElo "2496"]
[BlackElo "2864"]
[TimeControl "180+1"]
[EndTime "8:08:46 PDT"]
[Termination "MikaelyanArman won on time"]

1. d4 {[%clk 0:02:58.5]} 1... Nf6 {[%clk 0:02:58.8]} 2. c4 {[%clk 0:02:58]} 2...
d6 {[%clk 0:02:56.9]} 3. Nf3 {[%clk 0:02:52.1]} 3... Nc6 {[%clk 0:02:53.7]} 4.
d5 {[%clk 0:02:50]} 4... Nb8 {[%clk 0:02:52.8]} 5. Nc3 {[%clk 0:02:49]} 5... g6
{[%clk 0:02:46.8]} 6. g3 {[%clk 0:02:48.8]} 6... Bg7 {[%clk 0:02:47.3]} 7. Bg2
{[%clk 0:02:49.4]} 7... O-O {[%clk 0:02:47.9]} 8. O-O {[%clk 0:02:48.3]} 8... a5
{[%clk 0:02:43.4]} 9. e4 {[%clk 0:02:47.2]} 9... Na6 {[%clk 0:02:43]} 10. Be3
{[%clk 0:02:46.3]} 10... e5 {[%clk 0:02:37]} 11. a3 {[%clk 0:02:36.4]} 11... Ng4
{[%clk 0:02:30.4]} 12. Bg5 {[%clk 0:02:32.1]} 12... f6 {[%clk 0:02:28.3]} 13.
Bd2 {[%clk 0:02:32.8]} 13... Nc5 {[%clk 0:02:17.5]} 14. b4 {[%clk 0:02:21.7]}
14... axb4 {[%clk 0:02:18.4]} 15. axb4 {[%clk 0:02:22]} 15... Rxa1 {[%clk
0:02:18.5]} 16. Qxa1 {[%clk 0:02:22.6]} 16... Nb3 {[%clk 0:02:17.8]} 17. Qa2
{[%clk 0:02:21.6]} 17... Nxd2 {[%clk 0:01:49.4]} 18. Nxd2 {[%clk 0:02:22.5]}
18... f5 {[%clk 0:01:46.5]} 19. c5 {[%clk 0:02:18.2]} 19... Bh6 {[%clk
0:01:36.7]} 20. cxd6 {[%clk 0:02:14.4]} 20... cxd6 {[%clk 0:01:33.5]} 21. Nc4
{[%clk 0:02:13.5]} 21... Nf6 {[%clk 0:01:13.1]} 22. Qa5 {[%clk 0:01:48.8]} 22...
Qe7 {[%clk 0:00:45.7]} 23. Qb6 {[%clk 0:01:44]} 23... Rd8 {[%clk 0:00:38.5]} 24.
exf5 {[%clk 0:01:33.4]} 24... Bxf5 {[%clk 0:00:39.4]} 25. Nb5 {[%clk 0:01:32.6]}
25... Bf8 {[%clk 0:00:39.1]} 26. Re1 {[%clk 0:01:26.7]} 26... Bd3 {[%clk
0:00:36.7]} 27. Bf1 {[%clk 0:01:16.3]} 27... Nxd5 {[%clk 0:00:32.1]} 28. Qa5
{[%clk 0:01:10.1]} 28... Bxf1 {[%clk 0:00:30.9]} 29. Rxf1 {[%clk 0:01:11]} 29...
Nf6 {[%clk 0:00:22.3]} 30. Re1 {[%clk 0:01:05.2]} 30... e4 {[%clk 0:00:20.4]}
31. Nd4 {[%clk 0:00:57.5]} 31... d5 {[%clk 0:00:20.1]} 32. Ne3 {[%clk
0:00:54.1]} 32... Rd7 {[%clk 0:00:17.9]} 33. b5 {[%clk 0:00:53.4]} 33... Qb4
{[%clk 0:00:17.5]} 34. Qxb4 {[%clk 0:00:46]} 34... Bxb4 {[%clk 0:00:18.4]} 35.
Rc1 {[%clk 0:00:46.1]} 35... Kf7 {[%clk 0:00:17.7]} 36. Rc8 {[%clk 0:00:35.3]}
36... Ba5 {[%clk 0:00:17.1]} 37. Kg2 {[%clk 0:00:35.4]} 37... Bb6 {[%clk
0:00:16.9]} 38. Nec2 {[%clk 0:00:34]} 38... Rd8 {[%clk 0:00:17.1]} 39. Rxd8
{[%clk 0:00:29.1]} 39... Bxd8 {[%clk 0:00:18]} 40. f3 {[%clk 0:00:29.7]} 40...
Bb6 {[%clk 0:00:15.5]} 41. fxe4 {[%clk 0:00:29]} 41... dxe4 {[%clk 0:00:16.3]}
42. Nb3 {[%clk 0:00:23.9]} 42... Nd5 {[%clk 0:00:16.4]} 43. Kf1 {[%clk
0:00:15.7]} 43... Kf6 {[%clk 0:00:16.3]} 44. Ncd4 {[%clk 0:00:16.3]} 44... Ke5
{[%clk 0:00:16.1]} 45. Ne2 {[%clk 0:00:16.6]} 45... Ne3+ {[%clk 0:00:15.7]} 46.
Ke1 {[%clk 0:00:15.8]} 46... Nc4 {[%clk 0:00:16]} 47. Nc3 {[%clk 0:00:10.7]}
47... g5 {[%clk 0:00:13.8]} 48. Ke2 {[%clk 0:00:11.1]} 48... h5 {[%clk
0:00:13.4]} 49. Na4 {[%clk 0:00:11.7]} 49... Bd4 {[%clk 0:00:11.6]} 50. Nbc5
{[%clk 0:00:11.6]} 50... Bxc5 {[%clk 0:00:10]} 51. Nxc5 {[%clk 0:00:12.5]} 51...
b6 {[%clk 0:00:10.4]} 52. Nd7+ {[%clk 0:00:12.9]} 52... Ke6 {[%clk 0:00:08.9]}
53. Nf8+ {[%clk 0:00:12.6]} 53... Kf7 {[%clk 0:00:08.4]} 54. Nd7 {[%clk
0:00:12.8]} 54... Ke7 {[%clk 0:00:07.7]} 55. Nb8 {[%clk 0:00:10.6]} 55... Ke6
{[%clk 0:00:06.4]} 56. Nc6 {[%clk 0:00:10.5]} 56... Nd6 {[%clk 0:00:06.7]} 57.
Ke3 {[%clk 0:00:09.4]} 57... Kd5 {[%clk 0:00:04.7]} 58. Ne7+ {[%clk 0:00:09.6]}
58... Ke5 {[%clk 0:00:05.3]} 59. Nc6+ {[%clk 0:00:10]} 59... Kf5 {[%clk
0:00:05.8]} 60. Ne7+ {[%clk 0:00:10.2]} 60... Ke6 {[%clk 0:00:06.4]} 61. Nc6
{[%clk 0:00:10.3]} 61... Nxb5 {[%clk 0:00:06.9]} 62. Kxe4 {[%clk 0:00:10.5]}
62... Nd6+ {[%clk 0:00:07.5]} 63. Kd4 {[%clk 0:00:10.5]} 63... Kf5 {[%clk
0:00:08]} 64. Ne5 {[%clk 0:00:10.4]} 64... Nb5+ {[%clk 0:00:07.9]} 65. Kd5
{[%clk 0:00:10.9]} 65... Nc7+ {[%clk 0:00:08.2]} 66. Kd6 {[%clk 0:00:09.8]}
66... Ne8+ {[%clk 0:00:08.8]} 67. Kd5 {[%clk 0:00:09.7]} 67... Nf6+ {[%clk
0:00:09.4]} 68. Kd4 {[%clk 0:00:10]} 68... Ng4 {[%clk 0:00:08.2]} 69. Nf3 {[%clk
0:00:09.6]} 69... Nf6 {[%clk 0:00:06.8]} 70. Ne5 {[%clk 0:00:08.6]} 70... b5
{[%clk 0:00:07.4]} 71. h4 {[%clk 0:00:07.7]} 71... g4 {[%clk 0:00:05.6]} 72. Nc6
{[%clk 0:00:05.4]} 72... Ne4 {[%clk 0:00:04.9]} 73. Ne7+ {[%clk 0:00:05.8]}
73... Ke6 {[%clk 0:00:05.4]} 74. Nd5 {[%clk 0:00:02.1]} 74... Nxg3 {[%clk
0:00:05.2]} 0-1

[Event "Early-Titled-Tuesday-Blitz-September-26-2023"]
[Site "Chess.com"]
[Date "2023.09.26"]
[Round "1"]
[White "AndrewB92"]
[Black "Ditman2007"]
[Result "0-1"]
[WhiteElo "2371"]
[BlackElo "2676"]
[TimeControl "180+1"]
[EndTime "8:08:46 PDT"]
[Termination "Ditman2007 won by resignation"]

1. d4 {[%clk 0:03:00.9]} 1... Nf6 {[%clk 0:01:52.7]} 2. c4 {[%clk 0:03:00.9]}
2... c5 {[%clk 0:01:52.6]} 3. d5 {[%clk 0:03:00.8]} 3... b5 {[%clk 0:01:53.3]}
4. cxb5 {[%clk 0:03:00.4]} 4... a6 {[%clk 0:01:53.8]} 5. e3 {[%clk 0:03:00.3]}
5... g6 {[%clk 0:01:53.8]} 6. Nc3 {[%clk 0:02:59.9]} 6... Bg7 {[%clk 0:01:54.1]}
7. Nf3 {[%clk 0:02:59.6]} 7... O-O {[%clk 0:01:54.7]} 8. a4 {[%clk 0:02:59.8]}
8... d6 {[%clk 0:01:54.6]} 9. e4 {[%clk 0:02:59.3]} 9... Nfd7 {[%clk 0:01:51.9]}
10. Bd2 {[%clk 0:02:52.2]} 10... axb5 {[%clk 0:01:42.3]} 11. Bxb5 {[%clk
0:02:51.5]} 11... Ba6 {[%clk 0:01:43.2]} 12. O-O {[%clk 0:02:50.6]} 12... Bxb5
{[%clk 0:01:43.1]} 13. axb5 {[%clk 0:02:49.3]} 13... Rxa1 {[%clk 0:01:41.6]} 14.
Qxa1 {[%clk 0:02:49.8]} 14... Qb6 {[%clk 0:01:41.4]} 15. Qa4 {[%clk 0:02:41.2]}
15... Ne5 {[%clk 0:01:37.7]} 16. Nxe5 {[%clk 0:02:39.4]} 16... Bxe5 {[%clk
0:01:38.6]} 17. Ra1 {[%clk 0:02:36.6]} 17... Nd7 {[%clk 0:01:30]} 18. Qa7 {[%clk
0:02:30.2]} 18... Rd8 {[%clk 0:01:29.2]} 19. Qxb6 {[%clk 0:02:25.1]} 19... Nxb6
{[%clk 0:01:30.1]} 20. b3 {[%clk 0:01:59.2]} 20... Rb8 {[%clk 0:01:22.9]} 21.
Kf1 {[%clk 0:01:53.4]} 21... Kf8 {[%clk 0:01:13.7]} 22. g3 {[%clk 0:01:50.8]}
22... Ke8 {[%clk 0:01:12.5]} 23. Ke2 {[%clk 0:01:49.3]} 23... Nc8 {[%clk
0:01:11.3]} 24. Ra5 {[%clk 0:01:46.3]} 24... Kd7 {[%clk 0:01:08.3]} 25. Kd3
{[%clk 0:01:44.8]} 25... Rb7 {[%clk 0:01:05.2]} 26. f4 {[%clk 0:01:41.1]} 26...
Bxc3 {[%clk 0:01:05]} 27. Bxc3 {[%clk 0:01:40.7]} 27... Kc7 {[%clk 0:01:04.1]}
28. b4 {[%clk 0:01:27.6]} 28... cxb4 {[%clk 0:00:54.7]} 29. Bxb4 {[%clk
0:01:26]} 29... Kb6 {[%clk 0:00:55.2]} 30. Kc4 {[%clk 0:01:03.8]} 30... Rc7+
{[%clk 0:00:55]} 31. Kb3 {[%clk 0:01:00.8]} 31... Na7 {[%clk 0:00:55.1]} 32. Ra1
{[%clk 0:00:48.6]} 32... Kxb5 {[%clk 0:00:47.5]} 33. e5 {[%clk 0:00:43.1]} 33...
Nc8 {[%clk 0:00:35.8]} 34. Ra5+ {[%clk 0:00:30.8]} 34... Kb6 {[%clk 0:00:34.7]}
35. Ra8 {[%clk 0:00:30.7]} 35... Kb7 {[%clk 0:00:35]} 36. Ra2 {[%clk 0:00:28.9]}
36... dxe5 {[%clk 0:00:33.1]} 37. fxe5 {[%clk 0:00:28.6]} 37... Rd7 {[%clk
0:00:33.6]} 38. Rd2 {[%clk 0:00:25.3]} 38... Nb6 {[%clk 0:00:32.2]} 39. d6
{[%clk 0:00:23.7]} 39... exd6 {[%clk 0:00:31.7]} 40. exd6 {[%clk 0:00:23.8]}
40... Kc6 {[%clk 0:00:32.1]} 41. Rc2+ {[%clk 0:00:20.3]} 41... Kd5 {[%clk
0:00:32.2]} 42. Rd2+ {[%clk 0:00:18.4]} 42... Ke6 {[%clk 0:00:32]} 43. Re2+
{[%clk 0:00:18.4]} 43... Kd5 {[%clk 0:00:30.2]} 44. Re7 {[%clk 0:00:08.8]} 44...
Kc6 {[%clk 0:00:29.9]} 45. h4 {[%clk 0:00:05.9]} 45... Nd5 {[%clk 0:00:28.2]}
46. Rxd7 {[%clk 0:00:04.7]} 46... Kxd7 {[%clk 0:00:29.1]} 47. Ba3 {[%clk
0:00:05]} 47... Nf6 {[%clk 0:00:28.2]} 48. Kc4 {[%clk 0:00:04.5]} 48... Ne4
{[%clk 0:00:28.5]} 49. Kd5 {[%clk 0:00:04]} 49... Nxg3 {[%clk 0:00:28.4]} 50.
Ke5 {[%clk 0:00:04.2]} 50... Nh5 {[%clk 0:00:27.2]} 51. Bb4 {[%clk 0:00:04.1]}
51... f6+ {[%clk 0:00:27.6]} 52. Kd5 {[%clk 0:00:03.7]} 52... Nf4+ {[%clk
0:00:27.6]} 53. Ke4 {[%clk 0:00:04.3]} 53... Ne6 {[%clk 0:00:24.1]} 54. h5
{[%clk 0:00:03.8]} 54... Ng5+ {[%clk 0:00:21.4]} 55. Kf4 {[%clk 0:00:03.5]}
55... Nf7 {[%clk 0:00:21.5]} 56. hxg6 {[%clk 0:00:02.7]} 56... hxg6 {[%clk
0:00:21.8]} 57. Bc3 {[%clk 0:00:02.5]} 57... Ke6 {[%clk 0:00:22.1]} 58. d7
{[%clk 0:00:01.2]} 58... f5 {[%clk 0:00:22.6]} 59. Bb4 {[%clk 0:00:01.6]} 59...
Kxd7 {[%clk 0:00:22.4]} 60. Ba5 {[%clk 0:00:02.5]} 60... Ke6 {[%clk 0:00:22.6]}
61. Bc3 {[%clk 0:00:03.1]} 61... g5+ {[%clk 0:00:22.4]} 62. Kf3 {[%clk
0:00:03.3]} 62... Ne5+ {[%clk 0:00:22.6]} 63. Kf2 {[%clk 0:00:04.2]} 63... f4
{[%clk 0:00:22.9]} 64. Bd2 {[%clk 0:00:03.8]} 64... Kf5 {[%clk 0:00:23.4]} 65.
Bc1 {[%clk 0:00:03.9]} 65... g4 {[%clk 0:00:24]} 66. Ba3 {[%clk 0:00:03.7]}
66... Ke4 {[%clk 0:00:24.3]} 67. Kg2 {[%clk 0:00:04.6]} 67... Ke3 {[%clk
0:00:24.4]} 68. Kf1 {[%clk 0:00:04.9]} 68... g3 {[%clk 0:00:23.6]} 69. Bc5+
{[%clk 0:00:04.2]} 69... Kf3 {[%clk 0:00:23.6]} 70. Bd6 {[%clk 0:00:04]} 70...
Nd3 {[%clk 0:00:23.2]} 71. Kg1 {[%clk 0:00:04.3]} 71... Kg4 {[%clk 0:00:23.5]}
72. Bc7 {[%clk 0:00:03]} 72... f3 {[%clk 0:00:23.8]} 73. Bb6 {[%clk 0:00:03.2]}
73... Nf4 {[%clk 0:00:23.9]} 74. Ba7 {[%clk 0:00:02.8]} 74... Ne2+ {[%clk
0:00:20.9]} 75. Kf1 {[%clk 0:00:03.1]} 75... g2+ {[%clk 0:00:20.7]} 76. Ke1
{[%clk 0:00:03.2]} 76... g1=Q+ {[%clk 0:00:20.7]} 77. Bxg1 {[%clk 0:00:03.9]}
77... Nxg1 {[%clk 0:00:21.5]} 0-1